Workbook

Sheet ORÇ-FERRY TPB 45T - SEM REB
B2: DETALHES DA EMBARCAÇÃO & INFORMAÇÕES GERAIS
B3: VESSEL DETAILS & GENERAL INFORMATION
B5: CARACTERÍSTICAS DA EMBARCAÇÃO | VESSEL INFORMATIONS
B7: Nome da Embarcação | Vessel's Name | G7: Desloc. Leve: | Lighrweight
E8: FURNAS MENOR
B9: Ano de Construção | Date of Build | G9: Porte Bruto: | Deadweight
E10: A SER CONSTRUÍDO
B11: Sociedade Classificadora (SC) | Class Society | G11: Comp. Tot. | Length OA
D12: A SER DEFINIDO | I12: 18.00 m
B13: Nº de Identificação na SC | Class Identity Number | G13: Boca | Moulded Beam
E14: - | I14: 7 A 8
B15: Porto de Inscrição: | Inscription Port | G15: Pontal | Depth
E16: - | I16: 1.40 m
B17: Número de Inscrição: | Registration Number | G17: Arqueação Líquida | Light Tons
E18: - | I18: -
B19: Arqueação Bruta: | Gross Tons | G19: Classificação / Classification
E20: - | G20: FERRY BOAT
B21: Porte Bruto: | Deadweight | G21: Indicativo de Chamada: | Call Sign
E22: =#REF! ->  | I22: 4
B24: INFORMAÇÕES DO ARMADOR/SOLICITANTE | SHIPOWNER/STAKEHOLDERS INFORMATION
B25: Razão Social | Social Reason | D25: FURNAS
B26: Nacionalidade | D26: BRASILEIRA
B27: Endereço | D27: -
B30: EMPRESA RESPONSÁVEL PELA ESTIMATIVA | COMPANY RESPONSIBLE FOR ESTIMATIVE
B31: Razão Social | Social Reason
B32: CNPJ | D32: -
B33: Endereço | D33: -
B35: RESPONSÁVEIS TÉCNICOS DA ESTIMATIVA | TECHNICAL RESPONSIBLE FOR THE ESTIMATIVE
B37: Nome | Name | C37: **** GUEDES
B38: Cargo | Role | C38: ENGENHEIRO NAVAL
B39: Nacionalidade: | C39: BRASILEIRA
B40: Número do CREA: | C40: **********27
B42: INFORMAÇÕES SOBRE O TESTE | TEST INFORMATION
B43: Local Realização | Measument Place | E43: =#REF! -> 
B44: Data de Início | Start Date | D44: =#REF! ->  | F44: Data de Fim | End Date | H44: =#REF! -> 
B45: Detalhes do Equipamento | Equipment Details
E46: =#REF! -> 
B47: Empresa e Certificado de Calibração do Equip. | Company and Equip Calibration Certificate.
E48: =#REF! -> 
B49: Qualificação do Operador | Operator Qualification
E50: =#REF! -> 
B52: RESPONSÁVEIS E ASSINATURAS | RESPONSIBLE AND SIGNATURES
B53: Nome do Operador | Operator Name | F53: Carimbo e Assinatura | Signature and Stamp
B54: =G37 -> 0
B57: Nome do Vistoriador | Surveyor Name | F57: Carimbo e Assinatura | Signature and Stamp
B58: =#REF! -> 
B63: INFORMAÇÕES SOBRE O EQUIPAMENTO | EQUIPMENT INFORMATION
B64: Equipamento | Equipment | G64: Nº de Série: | Serial Number
D65: =#REF! ->  | I65: =#REF! -> 
B66: Marca e Modelo | Brand and model | G66: Data de Calibr.: | Calibr . Date
D67: =#REF! ->  | I67: =#REF! -> 
B68: Acessórios Conjugados | Conjugated Accessories | G68: Próx. Calibr.| Next Calibr.
D69: =#REF! ->  | I69: =#REF! -> 
B70: Responsável pela Calibração | Responsible for Calibration | G70: Velocidade Sônica | Sonic Speed
C71: =#REF! ->  | I71: =#REF! -> 
B73: INFORMAÇÕES PRINCIPAIS | PRINCIPAL INFORMATIONS
B74: =CONCATENATE("CERTIFICA-SE QUE, a pedido dos responsáveis pela empresa ",D25,", realizou-se medição de espessura por ultrassom na embarcação do tipo ",G20," ",E8," no ",E43," iniciando em ",D44," e concluindo em ",H44," a fim de atender aos requisitos da Sociedade Classificadora ", D12, " e da NORMAM 02/DPC. Com as informações pertinentes descritas a seguir:") -> 
B75: =CONCATENATE("i. Para a medição da espessura das plantações da embarcação foi utilizado 1 (um) instrumento medidor de espessura de parede ultrassônico marca/modelo ", D67,"." ) -> 
B76: =CONCATENATE("ii. As medições foram realizadas de acordo com as instruções do Class Society Surveyor e regulamentadas pela Autoridade Marítima em NORMAM 02/DPC acerca de Vistorias Intermediárias e de Renovação.") -> ii. As medições foram realizadas de acordo com as instruções do Class Society Surveyor e regulamentadas pela Autoridade Marítima em NORMAM 02/DPC acerca de Vistorias Intermediárias e de Renovação.
B77: =CONCATENATE("iii. Toda a espessura original foi retirada dos planos da embarcação fornecidos antecipadamente.") -> iii. Toda a espessura original foi retirada dos planos da embarcação fornecidos antecipadamente.
B79: =CONCATENATE("CERTIFY THAT, at the request of those responsible for company ",D25,", ultrasound thickness measurement was carried out on the vessel of type ",G20," ",E8," at ",E43," starting on ",D44," and ending on ",H44," in order to meet the requirements of the Classification Society ", D12, " and NORMAM 02/DPC. With the relevant information described below:") -> 
B80: =CONCATENATE("i. To measure the thickness of the vessel's plantations, 1 (one) ultrasonic wall thickness measuring instrument, brand/model ", D67,", was used." ) -> 
B81: =CONCATENATE("ii. Measurements were carried out in accordance with the instructions of the Class Society Surveyor and regulated by the Maritime Authority in NORMAM 02/DPC on Intermediate and Renewal Surveys.") -> ii. Measurements were carried out in accordance with the instructions of the Class Society Surveyor and regulated by the Maritime Authority in NORMAM 02/DPC on Intermediate and Renewal Surveys.
B82: =CONCATENATE("iii. All original thickness was taken from the vessel plans provided in advance.") -> iii. All original thickness was taken from the vessel plans provided in advance.
B84: INFORMAÇÕES DE ESPESSURAS NOMINAIS DE CHAPAS | NOMINAL PLATES THICKNESS INFORMATIONS
B85: LOCALIZAÇÃO | LOCATION | E85: POLEGADAS | INCHES | H85: MILÍMETROS | MILLIMETER
B86: =#REF! ->  | E86: 0.375 | H86: =E86*25.4 -> 9.525 mm
B87: =#REF! ->  | E87: =#REF! ->  | H87: =E87*25.4 -> 
B88: =#REF! ->  | E88: =#REF! ->  | H88: =E88*25.4 -> 
B89: =#REF! ->  | E89: =#REF! -> 
B90: =#REF! ->  | E90: =#REF! -> 
B91: =#REF! ->  | E91: 0.5 | H91: 12.700 mm
B92: =#REF! ->  | E92: 0.375 | H92: =E92*25.4 -> 9.525 mm
B93: =#REF! ->  | E93: 0.375 | H93: 9.525 mm
B94: =#REF! ->  | E94: 1 | H94: 25.400 mm
B95: =#REF! ->  | E95: 0.375 | H95: 9.525 mm
B99: CRITÉRIO: NORMAM 01/NORMAM 02 - Redução máxima de 20% das espessuras originais das chapas
B100: CRITERION: NORMAM 01/NORMAM 02 - Maximum reduction of 20% of the original thicknesses of the plates
B102: INFORMAÇÕES ADICIONAIS | ADITIONAL INFORMATIONS
B103: Em concordância com a Norma Brasileira ABNT 11889 (Bobinas e Chapas Grossas de Aço-Carbono e de Aço de Baixa Liga e Alta Resistência - Requisitos), existe uma tolerância de espessuras para as chapas em relação ao valor nominal, tendo-se um máximo e um mínimo aceitável após a laminação. Tais valores encontram-se listados a seguir:
B104: Padrão | C104: Mínimo | D104: Máximo
B105: 1/4" | C105: 6 | D105: 7.2 | F105: Assim, observaram-se valores durante o ensaio de medição de espessura maiores e menores que o nominal, entretanto, sempre dentro da margem de valores máximos e mínimos, bem como dentro da margem de redução requisitada por NORMAM 01/02
B106: 5/16" | C106: 7.7 | D106: 8.9
B107: 3/8" | C107: 9.2 | D107: 10.5
B108: 1/2" | C108: 12.2 | D108: 13.5
B109: 1" | C109: 24.7 | D109: 26.3
B111: CASCO
B114: PESO TOTAL DE AÇO | F114: 65.00 t | H114: =F114+0.1*F114 -> 71.50 t
B116: R$ / Kg de aço processado = | F116: 19.00 R$/Kg
B118: VALOR PARA CONSTRUÇÃO DO CASCO | F118: =H114*1000*F116 -> R$1,358,500.00
B127: EQUIPAMENTOS
B129: MAQUINAS
B130: EQPTO | C130: QUANTIDADE | F130: VALOR UNITÁRIO | H130: VALOR TOTAL
B131: MOTOR 142 Hp e Reversor | C131: 2 | F131: R$100,000.00 | H131: =F131*C131 -> R$200,000.00
B133: LEME E GOVERNO | C133: 2 | F133: R$50,000.00 | H133: R$100,000.00
B134: EIXO PROPULSOR | C134: 2 | F134: R$20,000.00 | H134: R$40,000.00
B135: HÉLICE | C135: 2 | F135: R$15,000.00 | H135: R$30,000.00
B136: BOMBAS | C136: 4 | F136: R$3,500.00 | H136: R$14,000.00
B137: GERADOR | C137: 1 | F137: R$10,000.00 | H137: R$10,000.00
B138: PAINEL ELÉTRICO | C138: 1 | F138: R$15,000.00 | H138: R$15,000.00
B140: COMANDO
B141: EQPTO | C141: QUANTIDADE | F141: VALOR UNITÁRIO | H141: VALOR TOTAL
B142: ECO-BATIMETRO | C142: 1 | F142: R$3,000.00 | H142: =F142*C142 -> R$3,000.00
B143: RAIDO VHF | C143: 1 | F143: R$1,500.00 | H143: =F143*C143 -> R$1,500.00
B144: BUSSOLA | C144: 1 | F144: R$500.00 | H144: =F144*C144 -> R$500.00
B145: AIS
B147: DIVERSOS
B148: EQPTO | C148: QUANTIDADE | F148: VALOR UNITÁRIO | H148: VALOR TOTAL
B149: BANCO | C149: 10 | F149: R$200.00 | H149: =F149*C149 -> R$2,000.00
B150: SANITÁRIOS | C150: 2 | F150: R$800.00 | H150: R$1,600.00
B151: MISCELÂNEAS ELÉTRICAS | C151: 1 | F151: R$10,000.00 | H151: R$10,000.00
B152: ACIONAMENTO DO GUINCHO | C152: 4 | F152: R$6,000.00 | H152: R$24,000.00
B153: COLETES SALVA VIDAS | C153: 40 | F153: 30.00 | H153: R$1,200.00
B154: BOTES | C154: 2 | F154: 3500.00 | H154: R$7,000.00
B155: LUMINÁRIAS | C155: 1 | F155: 2000.00 | H155: R$2,000.00
B156: PROJETO | C156: 1 | F156: 25000.00 | H156: R$25,000.00
B157: CERTIFICAÇÃO E REGISTRO | C157: 1 | F157: 10000.00 | H157: R$10,000.00
B159: VALOR DE EQUIPAMENTOS | H159: =SUM(H131:I138)+SUM(H142:I145)+SUM(H149:I157) -> R$496,800.00
B161: CUSTO DE IMPLEMENTAÇÃO (M.D.O., FIAÇÃO, ETC) | F161: =H159 -> 496800.00 R$/Kg
B163: VALOR TOTAL DE EQUIPAMENTOS | F163: =H159+F161 -> R$993,600.00
B165: ENTREGA E COMISSIONAMENTO
B166: ITEM | C166: QUANTIDADE | F166: VALOR UNITÁRIO | H166: VALOR TOTAL
B167: FRETE | C167: 3 | F167: R$50,000.00 | H167: =F167*C167 -> R$150,000.00
B168: MONTAGEM | C168: 10 | F168: =C168*2000+C168*100*30+3000+1000+10000+5000 -> R$69,000.00 | H168: =F168 -> R$69,000.00
B169: MUNK | C169: 12 | F169: R$5,000.00 | H169: =F169*C169 -> R$60,000.00
B172: VALOR PARA ENTREGA E COMISSIONAMENTO | F172: =SUM(H167:I170) -> R$279,000.00
B174: VALOR TOTAL PRA CONSTRUÇÃO | F174: =F163+F118+F172 -> R$2,631,100.00
B177: CONSOLIDAÇÃO: ANALISE DE VIABILIDADE
D178: VALOR ESPERADO | F178: PERCENTUAL
B179: MARGEM DE LUCRO | D179: R$500,000.00 | F179: =D179/F174 -> 19.00%
B180: MARGEM DE RISCO DE ANÁLISE | D180: R$200,000.00 | F180: =D180/F174 -> 7.60%
B182: VALOR TOTAL SEM IMPOSTOS | D182: =F174+D179+D180 -> R$3,331,100.00 | G182: CÁLCULOS E CORREÇÕES
G183: IMP | H183: =D182*D184 -> R$666,220.00
B184: IMPOSTOS E TAXAS | D184: 20.00% | G184: VL.C.I - 1 | H184: =D182+H183 -> R$3,997,320.00
G185: LIQ1 | H185: =H184*(1-D184) -> R$3,197,856.00
G186: DIF. LUCRO1 | H186: =D182-H185 -> R$133,244.00
G187: VALOR 1 | H187: =H184+H186 -> R$4,130,564.00
B188: VALOR COBRADO COM IMPOSTOS (MAIO 2022) | D188: =H190+H192 -> R$4,162,542.56 | G188: VL.S.I - 2 | H188: =H187*(1-D184) -> R$3,304,451.20
B189: VALOR TOTAL (JUNHO 2024) | D189: =D188*'Série Histórica IPCA'!K449 -> R$ 4,505,671.52 | G189: DIF. LUCRO2 | H189: =D182-H188 -> R$26,648.80
G190: VALOR 2 | H190: =H187+H189 -> R$4,157,212.80
G191: VL.S.I - 3 | H191: =H190*(1-D184) -> R$3,325,770.24
G192: DIF. LUCRO3 | H192: =D182-H191 -> R$5,329.76

Sheet Série Histórica IPCA
A2: SÉRIE HISTÓRICA DO IPCA
H3: (continua)
F4: VARIAÇÃO
A5: ANO | B5: MÊS | C5: NÚMERO ÍNDICE | D5: (%)
C6: (DEZ 93 = 100) | D6: NO | E6: 3 | F6: 6 | G6: NO | H6: 12
D7: MÊS | E7: MESES | F7: MESES | G7: ANO | H7: MESES
A9: 1994 | B9: JAN | C9: 141.31 | D9: 41.31 | E9: 162.13 | F9: 533.33 | G9: 41.31 | H9: 2,693.84
B10: FEV | C10: 198.22 | D10: 40.27 | E10: 171.24 | F10: 568.17 | G10: 98.22 | H10: 3,035.71
B11: MAR | C11: 282.96 | D11: 42.75 | E11: 182.96 | F11: 602.93 | G11: 182.96 | H11: 3,417.39
B12: ABR | C12: 403.73 | D12: 42.68 | E12: 185.71 | F12: 648.92 | G12: 303.73 | H12: 3,828.49
B13: MAI | C13: 581.49 | D13: 44.03 | E13: 193.36 | F13: 695.71 | G13: 481.49 | H13: 4,331.19
B14: JUN | C14: 857.29 | D14: 47.43 | E14: 202.97 | F14: 757.29 | G14: 757.29 | H14: 4,922.60
B15: JUL | C15: 915.93 | D15: 6.84 | E15: 126.87 | F15: 548.17 | G15: 815.93 | H15: 4,005.08
B16: AGO | C16: 932.97 | D16: 1.86 | E16: 60.44 | F16: 370.67 | G16: 832.97 | H16: 3,044.89
B17: SET | C17: 947.24 | D17: 1.53 | E17: 10.49 | F17: 234.76 | G17: 847.24 | H17: 2,253.15
B18: OUT | C18: 972.06 | D18: 2.62 | E18: 6.13 | F18: 140.77 | G18: 872.06 | H18: 1,703.17
B19: NOV | C19: 999.37 | D19: 2.81 | E19: 7.12 | F19: 71.86 | G19: 899.37 | H19: 1,267.54
B20: DEZ | C20: 1016.46 | D20: 1.71 | E20: 7.31 | F20: 18.57 | G20: 916.46 | H20: 916.46
A22: 1995 | B22: JAN | C22: 1033.74 | D22: 1.70 | E22: 6.35 | F22: 12.86 | G22: 1.70 | H22: 631.54
B23: FEV | C23: 1044.28 | D23: 1.02 | E23: 4.49 | F23: 11.93 | G23: 2.74 | H23: 426.83
B24: MAR | C24: 1060.47 | D24: 1.55 | E24: 4.33 | F24: 11.95 | G24: 4.33 | H24: 274.78
B25: ABR | C25: 1086.24 | D25: 2.43 | E25: 5.08 | F25: 11.75 | G25: 6.87 | H25: 169.05
B26: MAI | C26: 1115.24 | D26: 2.67 | E26: 6.80 | F26: 11.59 | G26: 9.72 | H26: 91.79
B27: JUN | C27: 1140.44 | D27: 2.26 | E27: 7.54 | F27: 12.20 | G27: 12.20 | H27: 33.03
B28: JUL | C28: 1167.35 | D28: 2.36 | E28: 7.47 | F28: 12.92 | G28: 14.84 | H28: 27.45
B29: AGO | C29: 1178.91 | D29: 0.99 | E29: 5.71 | F29: 12.89 | G29: 15.98 | H29: 26.36
B30: SET | C30: 1190.58 | D30: 0.99 | E30: 4.40 | F30: 12.27 | G30: 17.13 | H30: 25.69
B31: OUT | C31: 1207.37 | D31: 1.41 | E31: 3.43 | F31: 11.15 | G31: 18.78 | H31: 24.21
B32: NOV | C32: 1225.12 | D32: 1.47 | E32: 3.92 | F32: 9.85 | G32: 20.53 | H32: 22.59
B33: DEZ | C33: 1244.23 | D33: 1.56 | E33: 4.51 | F33: 9.10 | G33: 22.41 | H33: 22.41
A35: 1996 | B35: JAN | C35: 1260.90 | D35: 1.34 | E35: 4.43 | F35: 8.01 | G35: 1.34 | H35: 21.97
B36: FEV | C36: 1273.89 | D36: 1.03 | E36: 3.98 | F36: 8.06 | G36: 2.38 | H36: 21.99
B37: MAR | C37: 1278.35 | D37: 0.35 | E37: 2.74 | F37: 7.37 | G37: 2.74 | H37: 20.55
B38: ABR | C38: 1294.46 | D38: 1.26 | E38: 2.66 | F38: 7.21 | G38: 4.04 | H38: 19.17
B39: MAI | C39: 1310.25 | D39: 1.22 | E39: 2.85 | F39: 6.95 | G39: 5.31 | H39: 17.49
B40: JUN | C40: 1325.84 | D40: 1.19 | E40: 3.71 | F40: 6.56 | G40: 6.56 | H40: 16.26
B41: JUL | C41: 1340.56 | D41: 1.11 | E41: 3.56 | F41: 6.32 | G41: 7.74 | H41: 14.84
B42: AGO | C42: 1346.46 | D42: 0.44 | E42: 2.76 | F42: 5.70 | G42: 8.22 | H42: 14.21
B43: SET | C43: 1348.48 | D43: 0.15 | E43: 1.71 | F43: 5.49 | G43: 8.38 | H43: 13.26
B44: OUT | C44: 1352.53 | D44: 0.30 | E44: 0.89 | F44: 4.49 | G44: 8.70 | H44: 12.02
B45: NOV | C45: 1356.86 | D45: 0.32 | E45: 0.77 | F45: 3.56 | G45: 9.05 | H45: 10.75
B46: DEZ | C46: 1363.24 | D46: 0.47 | E46: 1.09 | F46: 2.82 | G46: 9.56 | H46: 9.56
A48: 1997 | B48: JAN | C48: 1379.33 | D48: 1.18 | E48: 1.98 | F48: 2.89 | G48: 1.18 | H48: 9.39
B49: FEV | C49: 1386.23 | D49: 0.50 | E49: 2.16 | F49: 2.95 | G49: 1.69 | H49: 8.82
B50: MAR | C50: 1393.30 | D50: 0.51 | E50: 2.21 | F50: 3.32 | G50: 2.21 | H50: 8.99
B51: ABR | C51: 1405.56 | D51: 0.88 | E51: 1.90 | F51: 3.92 | G51: 3.10 | H51: 8.58
B52: MAI | C52: 1411.32 | D52: 0.41 | E52: 1.81 | F52: 4.01 | G52: 3.53 | H52: 7.71
B53: JUN | C53: 1418.94 | D53: 0.54 | E53: 1.84 | F53: 4.09 | G53: 4.09 | H53: 7.02
B54: JUL | C54: 1422.06 | D54: 0.22 | E54: 1.17 | F54: 3.10 | G54: 4.31 | H54: 6.08
B55: AGO | C55: 1421.78 | D55: -0.02 | E55: 0.74 | F55: 2.56 | G55: 4.29 | H55: 5.59
B56: SET | C56: 1422.63 | D56: 0.06 | E56: 0.26 | F56: 2.11 | G56: 4.36 | H56: 5.50
B57: OUT | C57: 1425.90 | D57: 0.23 | E57: 0.27 | F57: 1.45 | G57: 4.60 | H57: 5.42
B58: NOV | C58: 1428.32 | D58: 0.17 | E58: 0.46 | F58: 1.20 | G58: 4.77 | H58: 5.27
B59: DEZ | C59: 1434.46 | D59: 0.43 | E59: 0.83 | F59: 1.09 | G59: 5.22 | H59: 5.22
A61: 1998 | B61: JAN | C61: 1444.64 | D61: 0.71 | E61: 1.31 | F61: 1.59 | G61: 0.71 | H61: 4.73
B62: FEV | C62: 1451.29 | D62: 0.46 | E62: 1.61 | F62: 2.08 | G62: 1.17 | H62: 4.69
B63: MAR | C63: 1456.22 | D63: 0.34 | E63: 1.52 | F63: 2.36 | G63: 1.52 | H63: 4.52
B64: ABR | C64: 1459.71 | D64: 0.24 | E64: 1.04 | F64: 2.37 | G64: 1.76 | H64: 3.85
B65: MAI | C65: 1467.01 | D65: 0.50 | E65: 1.08 | F65: 2.71 | G65: 2.27 | H65: 3.95
B66: JUN | C66: 1467.30 | D66: 0.02 | E66: 0.76 | F66: 2.29 | G66: 2.29 | H66: 3.41
B67: JUL | C67: 1465.54 | D67: -0.12 | E67: 0.40 | F67: 1.45 | G67: 2.17 | H67: 3.06
B68: AGO | C68: 1458.07 | D68: -0.51 | E68: -0.61 | F68: 0.47 | G68: 1.65 | H68: 2.55
B69: SET | C69: 1454.86 | D69: -0.22 | E69: -0.85 | F69: -0.09 | G69: 1.42 | H69: 2.27
B70: OUT | C70: 1455.15 | D70: 0.02 | E70: -0.71 | F70: -0.31 | G70: 1.44 | H70: 2.05
B71: NOV | C71: 1453.40 | D71: -0.12 | E71: -0.32 | F71: -0.93 | G71: 1.32 | H71: 1.76
B72: DEZ | C72: 1458.20 | D72: 0.33 | E72: 0.23 | F72: -0.62 | G72: 1.65 | H72: 1.65
A75: SÉRIE HISTÓRICA DO IPCA
H76: (continuação)
F77: VARIAÇÃO
A78: ANO | B78: MÊS | C78: NÚMERO ÍNDICE | D78: (%)
C79: (DEZ 93 = 100) | D79: NO | E79: 3 | F79: 6 | G79: NO | H79: 12
D80: MÊS | E80: MESES | F80: MESES | G80: ANO | H80: MESES
A82: 1999 | B82: JAN | C82: 1468.41 | D82: 0.70 | E82: 0.91 | F82: 0.20 | G82: 0.70 | H82: 1.65
B83: FEV | C83: 1483.83 | D83: 1.05 | E83: 2.09 | F83: 1.77 | G83: 1.76 | H83: 2.24
B84: MAR | C84: 1500.15 | D84: 1.10 | E84: 2.88 | F84: 3.11 | G84: 2.88 | H84: 3.02
B85: ABR | C85: 1508.55 | D85: 0.56 | E85: 2.73 | F85: 3.67 | G85: 3.45 | H85: 3.35
B86: MAI | C86: 1513.08 | D86: 0.30 | E86: 1.97 | F86: 4.11 | G86: 3.76 | H86: 3.14
B87: JUN | C87: 1515.95 | D87: 0.19 | E87: 1.05 | F87: 3.96 | G87: 3.96 | H87: 3.32
B88: JUL | C88: 1532.47 | D88: 1.09 | E88: 1.59 | F88: 4.36 | G88: 5.09 | H88: 4.57
B89: AGO | C89: 1541.05 | D89: 0.56 | E89: 1.85 | F89: 3.86 | G89: 5.68 | H89: 5.69
B90: SET | C90: 1545.83 | D90: 0.31 | E90: 1.97 | F90: 3.05 | G90: 6.01 | H90: 6.25
B91: OUT | C91: 1564.23 | D91: 1.19 | E91: 2.07 | F91: 3.69 | G91: 7.27 | H91: 7.50
B92: NOV | C92: 1579.09 | D92: 0.95 | E92: 2.47 | F92: 4.36 | G92: 8.29 | H92: 8.65
B93: DEZ | C93: 1588.56 | D93: 0.60 | E93: 2.76 | F93: 4.79 | G93: 8.94 | H93: 8.94
A95: 2000 | B95: JAN | C95: 1598.41 | D95: 0.62 | E95: 2.19 | F95: 4.30 | G95: 0.62 | H95: 8.85
B96: FEV | C96: 1600.49 | D96: 0.13 | E96: 1.36 | F96: 3.86 | G96: 0.75 | H96: 7.86
B97: MAR | C97: 1604.01 | D97: 0.22 | E97: 0.97 | F97: 3.76 | G97: 0.97 | H97: 6.92
B98: ABR | C98: 1610.75 | D98: 0.42 | E98: 0.77 | F98: 2.97 | G98: 1.40 | H98: 6.77
B99: MAI | C99: 1610.91 | D99: 0.01 | E99: 0.65 | F99: 2.02 | G99: 1.41 | H99: 6.47
B100: JUN | C100: 1614.62 | D100: 0.23 | E100: 0.66 | F100: 1.64 | G100: 1.64 | H100: 6.51
B101: JUL | C101: 1640.62 | D101: 1.61 | E101: 1.85 | F101: 2.64 | G101: 3.28 | H101: 7.06
B102: AGO | C102: 1662.11 | D102: 1.31 | E102: 3.18 | F102: 3.85 | G102: 4.63 | H102: 7.86
B103: SET | C103: 1665.93 | D103: 0.23 | E103: 3.18 | F103: 3.86 | G103: 4.87 | H103: 7.77
B104: OUT | C104: 1668.26 | D104: 0.14 | E104: 1.68 | F104: 3.57 | G104: 5.02 | H104: 6.65
B105: NOV | C105: 1673.60 | D105: 0.32 | E105: 0.69 | F105: 3.89 | G105: 5.35 | H105: 5.99
B106: DEZ | C106: 1683.47 | D106: 0.59 | E106: 1.05 | F106: 4.26 | G106: 5.97 | H106: 5.97
A108: 2001 | B108: JAN | C108: 1693.07 | D108: 0.57 | E108: 1.49 | F108: 3.20 | G108: 0.57 | H108: 5.92
B109: FEV | C109: 1700.86 | D109: 0.46 | E109: 1.63 | F109: 2.33 | G109: 1.03 | H109: 6.27
B110: MAR | C110: 1707.32 | D110: 0.38 | E110: 1.42 | F110: 2.48 | G110: 1.42 | H110: 6.44
B111: ABR | C111: 1717.22 | D111: 0.58 | E111: 1.43 | F111: 2.93 | G111: 2.00 | H111: 6.61
B112: MAI | C112: 1724.26 | D112: 0.41 | E112: 1.38 | F112: 3.03 | G112: 2.42 | H112: 7.04
B113: JUN | C113: 1733.23 | D113: 0.52 | E113: 1.52 | F113: 2.96 | G113: 2.96 | H113: 7.35
B114: JUL | C114: 1756.28 | D114: 1.33 | E114: 2.27 | F114: 3.73 | G114: 4.32 | H114: 7.05
B115: AGO | C115: 1768.57 | D115: 0.70 | E115: 2.57 | F115: 3.98 | G115: 5.06 | H115: 6.41
B116: SET | C116: 1773.52 | D116: 0.28 | E116: 2.32 | F116: 3.88 | G116: 5.35 | H116: 6.46
B117: OUT | C117: 1788.24 | D117: 0.83 | E117: 1.82 | F117: 4.14 | G117: 6.22 | H117: 7.19
B118: NOV | C118: 1800.94 | D118: 0.71 | E118: 1.83 | F118: 4.45 | G118: 6.98 | H118: 7.61
B119: DEZ | C119: 1812.65 | D119: 0.65 | E119: 2.21 | F119: 4.58 | G119: 7.67 | H119: 7.67
A121: 2002 | B121: JAN | C121: 1822.08 | D121: 0.52 | E121: 1.89 | F121: 3.75 | G121: 0.52 | H121: 7.62
B122: FEV | C122: 1828.64 | D122: 0.36 | E122: 1.54 | F122: 3.40 | G122: 0.88 | H122: 7.51
B123: MAR | C123: 1839.61 | D123: 0.60 | E123: 1.49 | F123: 3.73 | G123: 1.49 | H123: 7.75
B124: ABR | C124: 1854.33 | D124: 0.80 | E124: 1.77 | F124: 3.70 | G124: 2.30 | H124: 7.98
B125: MAI | C125: 1858.22 | D125: 0.21 | E125: 1.62 | F125: 3.18 | G125: 2.51 | H125: 7.77
B126: JUN | C126: 1866.02 | D126: 0.42 | E126: 1.44 | F126: 2.94 | G126: 2.94 | H126: 7.66
B127: JUL | C127: 1888.23 | D127: 1.19 | E127: 1.83 | F127: 3.63 | G127: 4.17 | H127: 7.51
B128: AGO | C128: 1900.50 | D128: 0.65 | E128: 2.28 | F128: 3.93 | G128: 4.85 | H128: 7.46
B129: SET | C129: 1914.18 | D129: 0.72 | E129: 2.58 | F129: 4.05 | G129: 5.60 | H129: 7.93
B130: OUT | C130: 1939.26 | D130: 1.31 | E130: 2.70 | F130: 4.58 | G130: 6.98 | H130: 8.45
B131: NOV | C131: 1997.83 | D131: 3.02 | E131: 5.12 | F131: 7.51 | G131: 10.22 | H131: 10.93
B132: DEZ | C132: 2039.78 | D132: 2.10 | E132: 6.56 | F132: 9.31 | G132: 12.53 | H132: 12.53
A134: 2003 | B134: JAN | C134: 2085.68 | D134: 2.25 | E134: 7.55 | F134: 10.46 | G134: 2.25 | H134: 14.47
B135: FEV | C135: 2118.43 | D135: 1.57 | E135: 6.04 | F135: 11.47 | G135: 3.86 | H135: 15.85
B136: MAR | C136: 2144.49 | D136: 1.23 | E136: 5.13 | F136: 12.03 | G136: 5.13 | H136: 16.57
B137: ABR | C137: 2165.29 | D137: 0.97 | E137: 3.82 | F137: 11.66 | G137: 6.15 | H137: 16.77
B138: MAI | C138: 2178.50 | D138: 0.61 | E138: 2.84 | F138: 9.04 | G138: 6.80 | H138: 17.24
B139: JUN | C139: 2175.23 | D139: -0.15 | E139: 1.43 | F139: 6.64 | G139: 6.64 | H139: 16.57
B140: JUL | C140: 2179.58 | D140: 0.20 | E140: 0.66 | F140: 4.50 | G140: 6.85 | H140: 15.43
B141: AGO | C141: 2186.99 | D141: 0.34 | E141: 0.39 | F141: 3.24 | G141: 7.22 | H141: 15.07
B142: SET | C142: 2204.05 | D142: 0.78 | E142: 1.32 | F142: 2.78 | G142: 8.05 | H142: 15.14
B143: OUT | C143: 2210.44 | D143: 0.29 | E143: 1.42 | F143: 2.09 | G143: 8.37 | H143: 13.98
B144: NOV | C144: 2217.96 | D144: 0.34 | E144: 1.42 | F144: 1.81 | G144: 8.74 | H144: 11.02
B145: DEZ | C145: 2229.49 | D145: 0.52 | E145: 1.15 | F145: 2.49 | G145: 9.30 | H145: 9.30
A148: SÉRIE HISTÓRICA DO IPCA
H149: (continuação)
F150: VARIAÇÃO
A151: ANO | B151: MÊS | C151: NÚMERO ÍNDICE | D151: (%)
C152: (DEZ 93 = 100) | D152: NO | E152: 3 | F152: 6 | G152: NO | H152: 12
D153: MÊS | E153: MESES | F153: MESES | G153: ANO | H153: MESES
A155: 2004 | B155: JAN | C155: 2246.43 | D155: 0.76 | E155: 1.63 | F155: 3.07 | G155: 0.76 | H155: 7.71
B156: FEV | C156: 2260.13 | D156: 0.61 | E156: 1.90 | F156: 3.34 | G156: 1.37 | H156: 6.69
B157: MAR | C157: 2270.75 | D157: 0.47 | E157: 1.85 | F157: 3.03 | G157: 1.85 | H157: 5.89
B158: ABR | C158: 2279.15 | D158: 0.37 | E158: 1.46 | F158: 3.11 | G158: 2.23 | H158: 5.26
B159: MAI | C159: 2290.77 | D159: 0.51 | E159: 1.36 | F159: 3.28 | G159: 2.75 | H159: 5.15
B160: JUN | C160: 2307.03 | D160: 0.71 | E160: 1.60 | F160: 3.48 | G160: 3.48 | H160: 6.06
B161: JUL | C161: 2328.02 | D161: 0.91 | E161: 2.14 | F161: 3.63 | G161: 4.42 | H161: 6.81
B162: AGO | C162: 2344.08 | D162: 0.69 | E162: 2.33 | F162: 3.71 | G162: 5.14 | H162: 7.18
B163: SET | C163: 2351.82 | D163: 0.33 | E163: 1.94 | F163: 3.57 | G163: 5.49 | H163: 6.70
B164: OUT | C164: 2362.17 | D164: 0.44 | E164: 1.47 | F164: 3.64 | G164: 5.95 | H164: 6.86
B165: NOV | C165: 2378.47 | D165: 0.69 | E165: 1.47 | F165: 3.83 | G165: 6.68 | H165: 7.24
B166: DEZ | C166: 2398.92 | D166: 0.86 | E166: 2.00 | F166: 3.98 | G166: 7.60 | H166: 7.60
A168: 2005 | B168: JAN | C168: 2412.83 | D168: 0.58 | E168: 2.14 | F168: 3.64 | G168: 0.58 | H168: 7.41
B169: FEV | C169: 2427.07 | D169: 0.59 | E169: 2.04 | F169: 3.54 | G169: 1.17 | H169: 7.39
B170: MAR | C170: 2441.87 | D170: 0.61 | E170: 1.79 | F170: 3.83 | G170: 1.79 | H170: 7.54
B171: ABR | C171: 2463.11 | D171: 0.87 | E171: 2.08 | F171: 4.27 | G171: 2.68 | H171: 8.07
B172: MAI | C172: 2475.18 | D172: 0.49 | E172: 1.98 | F172: 4.07 | G172: 3.18 | H172: 8.05
B173: JUN | C173: 2474.68 | D173: -0.02 | E173: 1.34 | F173: 3.16 | G173: 3.16 | H173: 7.27
B174: JUL | C174: 2480.87 | D174: 0.25 | E174: 0.72 | F174: 2.82 | G174: 3.42 | H174: 6.57
B175: AGO | C175: 2485.09 | D175: 0.17 | E175: 0.40 | F175: 2.39 | G175: 3.59 | H175: 6.02
B176: SET | C176: 2493.79 | D176: 0.35 | E176: 0.77 | F176: 2.13 | G176: 3.95 | H176: 6.04
B177: OUT | C177: 2512.49 | D177: 0.75 | E177: 1.27 | F177: 2.00 | G177: 4.73 | H177: 6.36
B178: NOV | C178: 2526.31 | D178: 0.55 | E178: 1.66 | F178: 2.07 | G178: 5.31 | H178: 6.22
B179: DEZ | C179: 2535.40 | D179: 0.36 | E179: 1.67 | F179: 2.45 | G179: 5.69 | H179: 5.69
A181: 2006 | B181: JAN | C181: 2550.36 | D181: 0.59 | E181: 1.51 | F181: 2.80 | G181: 0.59 | H181: 5.70
B182: FEV | C182: 2560.82 | D182: 0.41 | E182: 1.37 | F182: 3.05 | G182: 1.00 | H182: 5.51
B183: MAR | C183: 2571.83 | D183: 0.43 | E183: 1.44 | F183: 3.13 | G183: 1.44 | H183: 5.32
B184: ABR | C184: 2577.23 | D184: 0.21 | E184: 1.05 | F184: 2.58 | G184: 1.65 | H184: 4.63
B185: MAI | C185: 2579.81 | D185: 0.10 | E185: 0.74 | F185: 2.12 | G185: 1.75 | H185: 4.23
B186: JUN | C186: 2574.39 | D186: -0.21 | E186: 0.10 | F186: 1.54 | G186: 1.54 | H186: 4.03
B187: JUL | C187: 2579.28 | D187: 0.19 | E187: 0.08 | F187: 1.13 | G187: 1.73 | H187: 3.97
B188: AGO | C188: 2580.57 | D188: 0.05 | E188: 0.03 | F188: 0.77 | G188: 1.78 | H188: 3.84
B189: SET | C189: 2585.99 | D189: 0.21 | E189: 0.45 | F189: 0.55 | G189: 2.00 | H189: 3.70
B190: OUT | C190: 2594.52 | D190: 0.33 | E190: 0.59 | F190: 0.67 | G190: 2.33 | H190: 3.26
B191: NOV | C191: 2602.56 | D191: 0.31 | E191: 0.85 | F191: 0.88 | G191: 2.65 | H191: 3.02
B192: DEZ | C192: 2615.05 | D192: 0.48 | E192: 1.12 | F192: 1.58 | G192: 3.14 | H192: 3.14
A194: 2007 | B194: JAN | C194: 2626.56 | D194: 0.44 | E194: 1.23 | F194: 1.83 | G194: 0.44 | H194: 2.99
B195: FEV | C195: 2638.12 | D195: 0.44 | E195: 1.37 | F195: 2.23 | G195: 0.88 | H195: 3.02
B196: MAR | C196: 2647.88 | D196: 0.37 | E196: 1.26 | F196: 2.39 | G196: 1.26 | H196: 2.96
B197: ABR | C197: 2654.50 | D197: 0.25 | E197: 1.06 | F197: 2.31 | G197: 1.51 | H197: 3.00
B198: MAI | C198: 2661.93 | D198: 0.28 | E198: 0.90 | F198: 2.28 | G198: 1.79 | H198: 3.18
B199: JUN | C199: 2669.38 | D199: 0.28 | E199: 0.81 | F199: 2.08 | G199: 2.08 | H199: 3.69
B200: JUL | C200: 2675.79 | D200: 0.24 | E200: 0.80 | F200: 1.87 | G200: 2.32 | H200: 3.74
B201: AGO | C201: 2688.37 | D201: 0.47 | E201: 0.99 | F201: 1.90 | G201: 2.80 | H201: 4.18
B202: SET | C202: 2693.21 | D202: 0.18 | E202: 0.89 | F202: 1.71 | G202: 2.99 | H202: 4.15
B203: OUT | C203: 2701.29 | D203: 0.30 | E203: 0.95 | F203: 1.76 | G203: 3.30 | H203: 4.12
B204: NOV | C204: 2711.55 | D204: 0.38 | E204: 0.86 | F204: 1.86 | G204: 3.69 | H204: 4.19
B205: DEZ | C205: 2731.62 | D205: 0.74 | E205: 1.43 | F205: 2.33 | G205: 4.46 | H205: 4.46
A207: 2008 | B207: JAN | C207: 2746.37 | D207: 0.54 | E207: 1.67 | F207: 2.64 | G207: 0.54 | H207: 4.56
B208: FEV | C208: 2759.83 | D208: 0.49 | E208: 1.78 | F208: 2.66 | G208: 1.03 | H208: 4.61
B209: MAR | C209: 2773.08 | D209: 0.48 | E209: 1.52 | F209: 2.97 | G209: 1.52 | H209: 4.73
B210: ABR | C210: 2788.33 | D210: 0.55 | E210: 1.53 | F210: 3.22 | G210: 2.08 | H210: 5.04
B211: MAI | C211: 2810.36 | D211: 0.79 | E211: 1.83 | F211: 3.64 | G211: 2.88 | H211: 5.58
B212: JUN | C212: 2831.16 | D212: 0.74 | E212: 2.09 | F212: 3.64 | G212: 3.64 | H212: 6.06
B213: JUL | C213: 2846.16 | D213: 0.53 | E213: 2.07 | F213: 3.63 | G213: 4.19 | H213: 6.37
B214: AGO | C214: 2854.13 | D214: 0.28 | E214: 1.56 | F214: 3.42 | G214: 4.48 | H214: 6.17
B215: SET | C215: 2861.55 | D215: 0.26 | E215: 1.07 | F215: 3.19 | G215: 4.76 | H215: 6.25
B216: OUT | C216: 2874.43 | D216: 0.45 | E216: 0.99 | F216: 3.09 | G216: 5.23 | H216: 6.41
B217: NOV | C217: 2884.78 | D217: 0.36 | E217: 1.07 | F217: 2.65 | G217: 5.61 | H217: 6.39
B218: DEZ | C218: 2892.86 | D218: 0.28 | E218: 1.09 | F218: 2.18 | G218: 5.90 | H218: 5.90
A221: SÉRIE HISTÓRICA DO IPCA
H222: (continuação)
... 218 more rows
